[Event "Open Cappelle-la-Grande"]
[Date "2025.02.16"]
[White "Liu, Casper"]
[Black "Nikolov, Momchil"]
[WhiteElo "2271"]
[BlackElo "2433"]
[Round "2.2.13"]
[Result "1/2-1/2"]
[TimeControl "40/5400+30:1800+30"]

1. d4 {[%clk 1:29:40]} 1... Nf6 {[%clk 1:29:54]} 2. c4 {[%clk 1:30:02]} 2... e6
{[%clk 1:30:15]} 3. g3 {[%clk 1:30:26]} 3... c5 {[%clk 1:30:11]} 4. d5 {[%clk
1:30:51]} 4... exd5 {[%clk 1:30:29]} 5. cxd5 {[%clk 1:31:19]} 5... d6 {[%clk
1:30:51]} 6. Nc3 {[%clk 1:31:45]} 6... g6 {[%clk 1:31:15]} 7. Bg2 {[%clk
1:32:13]} 7... Bg7 {[%clk 1:31:38]} 8. Nf3 {[%clk 1:32:40]} 8... O-O {[%clk
1:32:00]} 9. O-O {[%clk 1:33:06]} 9... Re8 {[%clk 1:32:25]} 10. Bf4 {[%clk
1:33:30]} 10... Na6 {[%clk 1:32:48]} 11. Re1 {[%clk 1:32:13]} 11... Bg4 {[%clk
1:32:47]} 12. h3 {[%clk 1:31:09]} 12... Bxf3 {[%clk 1:32:56]} 13. Bxf3 {[%clk
1:31:37]} 13... Nd7 {[%clk 1:30:06]} 14. Ne4 {[%clk 1:32:01]} 14... Ne5 {[%clk
1:29:30]} 15. Bg2 {[%clk 1:32:29]} 15... h6 {[%clk 1:26:07]} 16. g4 {[%clk
1:32:53]} 16... b5 {[%clk 1:21:46]} 17. Rc1 {[%clk 1:26:59]} 17... Rc8 {[%clk
1:18:19]} 18. b3 {[%clk 1:26:46]} 18... Kh7 {[%clk 1:15:24]} 19. Bh2 {[%clk
1:22:20]} 19... Qe7 {[%clk 1:14:07]} 20. Qd2 {[%clk 1:16:59]} 20... b4 {[%clk
1:03:46]} 21. f4 {[%clk 1:01:33]} 21... Nd7 {[%clk 1:03:54]} 22. Qd3 {[%clk
1:01:14]} 22... c4 {[%clk 0:51:07]} 23. Rxc4 {[%clk 0:55:52]} 23... Rxc4 {[%clk
0:49:45]} 24. Qxc4 {[%clk 0:43:40]} 24... Nac5 {[%clk 0:50:02]} 25. Nxc5 {[%clk
0:39:38]} 25... Qe3+ {[%clk 0:50:16]} 26. Kh1 {[%clk 0:23:03]} 26... Nxc5 {[%clk
0:50:21]} 27. Bf3 {[%clk 0:20:05]} 27... Ne4 {[%clk 0:40:45]} 28. Qc1 {[%clk
0:17:05]} 28... Qf2 {[%clk 0:34:38]} 29. Rg1 {[%clk 0:15:15]} 29... Qh4 {[%clk
0:24:09]} 30. Bxe4 {[%clk 0:13:47]} 30... Rxe4 {[%clk 0:24:31]} 31. Qf1 {[%clk
0:14:12]} 31... Re3 {[%clk 0:23:41]} 32. Rg2 {[%clk 0:10:49]} 32... Qxh3 {[%clk
0:19:09]} 33. f5 {[%clk 0:08:13]} 33... Be5 {[%clk 0:15:18]} 34. fxg6+ {[%clk
0:08:34]} 34... fxg6 {[%clk 0:09:58]} 35. Qf7+ {[%clk 0:08:59]} 35... Bg7 {[%clk
0:10:20]} 36. Qf4 {[%clk 0:09:16]} 36... Rc3 {[%clk 0:05:48]} 37. Qxb4 {[%clk
0:09:11]} 37... Rc1+ {[%clk 0:04:22]} 38. Rg1 {[%clk 0:09:36]} 38... Rxg1+
{[%clk 0:01:09]} 39. Kxg1 {[%clk 0:10:05]} 39... Qe3+ {[%clk 0:01:29]} 40. Kf1
{[%clk 0:10:23]} 40... Qh3+ {[%clk 0:01:47]} 41. Kg1 {[%clk 0:10:48]} 41... Qe3+
{[%clk 0:24:59]} 42. Kf1 {[%clk 0:41:13]} 42... Qh3+ {[%clk 0:22:16]} 43. Kg1
{[%clk 0:41:38]} 43... Qe3+ {[%clk 0:21:55]} 1/2-1/2

[Variant "Standard"]
[Site "Europe Echecs"]

[Event "Open Cappelle-la-Grande"]
[Date "2025.02.16"]
[White "Bournel, Antoine"]
[Black "Terekhov, Andrey"]
[WhiteElo "2432"]
[BlackElo "2265"]
[Round "2.2.14"]
[Result "1/2-1/2"]
[TimeControl "40/5400+30:1800+30"]

1. e4 {[%clk 1:22:09]} 1... e5 {[%clk 1:30:39]} 2. Nf3 {[%clk 1:22:10]} 2... Nf6
{[%clk 1:31:04]} 3. Nxe5 {[%clk 1:20:25]} 3... d6 {[%clk 1:31:11]} 4. Nf3 {[%clk
1:14:50]} 4... Nxe4 {[%clk 1:31:04]} 5. c4 {[%clk 1:14:24]} 5... Nc6 {[%clk
1:30:59]} 6. Nc3 {[%clk 1:11:25]} 6... Nxc3 {[%clk 1:30:41]} 7. dxc3 {[%clk
1:11:43]} 7... g6 {[%clk 1:30:16]} 8. Bg5 {[%clk 1:06:45]} 8... Be7 {[%clk
1:30:17]} 9. Bh6 {[%clk 1:06:22]} 9... Bf8 {[%clk 1:29:55]} 10. Bg5 {[%clk
1:02:29]} 10... Be7 {[%clk 1:30:07]} 11. Bh6 {[%clk 1:01:17]} 11... Bf8 {[%clk
1:29:58]} 12. Bf4 {[%clk 0:59:33]} 12... Bg7 {[%clk 1:18:30]} 13. Qd2 {[%clk
0:57:41]} 13... Be6 {[%clk 1:01:16]} 14. Ng5 {[%clk 0:47:09]} 14... Bg4 {[%clk
0:46:42]} 15. f3 {[%clk 0:44:17]} 15... Qe7+ {[%clk 0:42:10]} 16. Be2 {[%clk
0:38:04]} 16... Bf5 {[%clk 0:39:17]} 17. g4 {[%clk 0:36:46]} 17... Bd7 {[%clk
0:36:03]} 18. O-O-O {[%clk 0:33:40]} 18... h6 {[%clk 0:29:22]} 19. Ne4 {[%clk
0:32:35]} 19... O-O-O {[%clk 0:29:16]} 20. Rhe1 {[%clk 0:30:40]} 20... f5 {[%clk
0:27:56]} 21. gxf5 {[%clk 0:28:43]} 21... Bxf5 {[%clk 0:27:47]} 22. Bf1 {[%clk
0:17:30]} 1/2-1/2

[Variant "Standard"]
[Site "Europe Echecs"]

[Event "Open Cappelle-la-Grande"]
[Date "2025.02.16"]
[White "Daeschler, Florian"]
[Black "Lu, Miaoyi"]
[WhiteElo "2258"]
[BlackElo "2432"]
[Round "2.2.15"]
[Result "1/2-1/2"]
[TimeControl "40/5400+30:1800+30"]

1. e4 {[%clk 1:30:56]} 1... e5 {[%clk 1:25:13]} 2. Nf3 {[%clk 1:31:07]} 2... Nc6
{[%clk 1:25:41]} 3. Bb5 {[%clk 1:31:30]} 3... a6 {[%clk 1:26:07]} 4. Ba4 {[%clk
1:31:55]} 4... Nf6 {[%clk 1:26:34]} 5. O-O {[%clk 1:32:18]} 5... Bc5 {[%clk
1:26:47]} 6. c3 {[%clk 1:32:25]} 6... b5 {[%clk 1:27:13]} 7. Bc2 {[%clk
1:30:39]} 7... d5 {[%clk 1:27:38]} 8. d4 {[%clk 1:30:37]} 8... dxe4 {[%clk
1:27:53]} 9. dxe5 {[%clk 1:30:50]} 9... Qxd1 {[%clk 1:23:08]} 10. Rxd1 {[%clk
1:26:43]} 10... exf3 {[%clk 1:21:14]} 11. exf6 {[%clk 1:27:10]} 11... gxf6
{[%clk 1:15:20]} 12. Be4 {[%clk 1:20:27]} 12... Bd7 {[%clk 1:15:48]} 13. Nd2
{[%clk 1:20:39]} 13... O-O-O {[%clk 1:03:43]} 14. Nxf3 {[%clk 1:20:51]} 14...
Rhe8 {[%clk 0:47:54]} 15. Bxh7 {[%clk 0:48:19]} 15... Re2 {[%clk 0:46:52]} 16.
b4 {[%clk 0:44:38]} 16... Bb6 {[%clk 0:42:53]} 17. Be3 {[%clk 0:40:33]} 17...
Bxe3 {[%clk 0:40:59]} 18. fxe3 {[%clk 0:41:00]} 18... Rxe3 {[%clk 0:28:51]} 19.
Rd3 {[%clk 0:39:48]} 19... Rde8 {[%clk 0:14:54]} 20. a4 {[%clk 0:25:40]} 20...
f5 {[%clk 0:07:09]} 21. Rxe3 {[%clk 0:22:18]} 21... Rxe3 {[%clk 0:07:30]} 22.
axb5 {[%clk 0:22:26]} 22... axb5 {[%clk 0:07:56]} 23. Ra8+ {[%clk 0:20:10]}
23... Kb7 {[%clk 0:06:32]} 24. Rf8 {[%clk 0:19:44]} 24... Be6 {[%clk 0:03:19]}
25. h4 {[%clk 0:19:55]} 25... Rxc3 {[%clk 0:02:00]} 26. h5 {[%clk 0:20:10]}
26... Nxb4 {[%clk 0:02:21]} 27. h6 {[%clk 0:19:22]} 27... Nd3 {[%clk 0:02:37]}
28. Bg8 {[%clk 0:15:07]} 28... Rc1+ {[%clk 0:01:44]} 29. Kh2 {[%clk 0:15:36]}
29... f4 {[%clk 0:00:58]} 30. h7 {[%clk 0:12:50]} 30... Nf2 {[%clk 0:01:26]} 31.
Ng1 {[%clk 0:09:24]} 31... Ng4+ {[%clk 0:01:54]} 32. Kh1 {[%clk 0:09:49]} 32...
Nf2+ {[%clk 0:01:49]} 33. Kh2 {[%clk 0:10:18]} 33... Ng4+ {[%clk 0:02:12]} 34.
Kh1 {[%clk 0:10:46]} 1/2-1/2

[Variant "Standard"]
[Site "Europe Echecs"]

[Event "Open Cappelle-la-Grande"]
[Date "2025.02.16"]
[White "Sorensen, Hampus"]
[Black "Kurmangaliyeva, Liya"]
[WhiteElo "2430"]
[BlackElo "2251"]
[Round "2.2.16"]
[Result "1/2-1/2"]
[TimeControl "40/5400+30:1800+30"]

1. d4 {[%clk 1:30:34]} 1... d5 {[%clk 1:30:43]} 2. Bf4 {[%clk 1:30:31]} 2... c5
{[%clk 1:26:56]} 3. e3 {[%clk 1:30:25]} 3... Nc6 {[%clk 1:25:27]} 4. Nf3 {[%clk
1:30:46]} 4... Nf6 {[%clk 1:25:17]} 5. Nbd2 {[%clk 1:31:00]} 5... Nh5 {[%clk
1:22:44]} 6. dxc5 {[%clk 1:29:59]} 6... Nxf4 {[%clk 1:22:39]} 7. exf4 {[%clk
1:30:24]} 7... a5 {[%clk 1:22:24]} 8. a4 {[%clk 1:22:56]} 8... g6 {[%clk
1:22:34]} 9. Bb5 {[%clk 1:18:39]} 9... Bg7 {[%clk 1:20:01]} 10. c3 {[%clk
1:19:02]} 10... Qc7 {[%clk 1:17:40]} 11. Nb3 {[%clk 1:14:38]} 11... O-O {[%clk
1:10:44]} 12. O-O {[%clk 1:10:48]} 12... Qxf4 {[%clk 0:56:55]} 13. Qxd5 {[%clk
1:10:29]} 13... Be6 {[%clk 0:56:48]} 14. Qd2 {[%clk 1:06:48]} 14... Qc7 {[%clk
0:56:44]} 15. Nbd4 {[%clk 0:54:57]} 15... Bd5 {[%clk 0:55:08]} 16. Be2 {[%clk
0:30:41]} 16... Nxd4 {[%clk 0:41:12]} 17. Nxd4 {[%clk 0:31:07]} 17... Qxc5
{[%clk 0:40:24]} 18. Rfd1 {[%clk 0:31:11]} 18... Rfd8 {[%clk 0:38:31]} 19. Qe3
{[%clk 0:28:40]} 19... Qc7 {[%clk 0:31:09]} 20. Nb5 {[%clk 0:21:12]} 20... Qc6
{[%clk 0:30:15]} 21. Bf1 {[%clk 0:21:26]} 21... Bf6 {[%clk 0:22:44]} 22. Nd4
{[%clk 0:18:17]} 22... Qb6 {[%clk 0:20:15]} 23. Bb5 {[%clk 0:17:59]} 23... Qc7
{[%clk 0:16:09]} 24. Rd2 {[%clk 0:15:39]} 24... Be5 {[%clk 0:15:37]} 25. g3
{[%clk 0:12:48]} 25... Bd6 {[%clk 0:10:13]} 26. Rad1 {[%clk 0:12:44]} 26... Bc5
{[%clk 0:10:14]} 27. Qg5 {[%clk 0:12:16]} 27... Kh8 {[%clk 0:04:48]} 28. Nc2
{[%clk 0:09:07]} 28... Bb3 {[%clk 0:03:08]} 29. Rxd8+ {[%clk 0:06:18]} 29...
Rxd8 {[%clk 0:03:34]} 30. Rxd8+ {[%clk 0:06:22]} 30... Qxd8 {[%clk 0:04:01]} 31.
Qxc5 {[%clk 0:06:46]} 31... Bxc2 {[%clk 0:04:15]} 32. Qe5+ {[%clk 0:06:35]}
32... Kg8 {[%clk 0:04:28]} 33. Qe2 {[%clk 0:06:23]} 33... Bd1 {[%clk 0:01:46]}
34. Qe3 {[%clk 0:06:06]} 34... Bb3 {[%clk 0:01:51]} 35. Qe2 {[%clk 0:05:02]}
35... Bd1 {[%clk 0:01:59]} 36. Qe3 {[%clk 0:05:22]} 36... Bb3 {[%clk 0:02:24]}
37. Qe2 {[%clk 0:05:41]} 37... Bd1 {[%clk 0:02:48]} 38. Qe3 {[%clk 0:06:05]}
38... Bb3 {[%clk 0:03:13]} 1/2-1/2

[Variant "Standard"]
[Site "Europe Echecs"]

[Event "Open Cappelle-la-Grande"]
[Date "2025.02.16"]
[White "Bacrot, Alexandre"]
[Black "Le Corre, Benjamin"]
[WhiteElo "2423"]
[BlackElo "2240"]
[Round "2.2.17"]
[Result "1-0"]
[TimeControl "40/5400+30:1800+30"]

1. e4 {[%clk 1:27:50]} 1... e5 {[%clk 1:30:56]} 2. Nf3 {[%clk 1:27:36]} 2... Nc6
{[%clk 1:31:22]} 3. Nc3 {[%clk 1:27:07]} 3... Nf6 {[%clk 1:31:29]} 4. g3 {[%clk
1:27:34]} 4... d5 {[%clk 1:25:20]} 5. exd5 {[%clk 1:26:29]} 5... Nxd5 {[%clk
1:25:45]} 6. Bg2 {[%clk 1:26:54]} 6... Nxc3 {[%clk 1:26:11]} 7. bxc3 {[%clk
1:27:20]} 7... Bd6 {[%clk 1:22:25]} 8. O-O {[%clk 1:27:44]} 8... O-O {[%clk
1:22:52]} 9. d4 {[%clk 1:23:44]} 9... Bg4 {[%clk 1:13:18]} 10. h3 {[%clk
1:21:24]} 10... Bd7 {[%clk 1:07:02]} 11. Rb1 {[%clk 1:13:16]} 11... Rb8 {[%clk
0:58:07]} 12. Re1 {[%clk 1:06:24]} 12... exd4 {[%clk 0:44:14]} 13. cxd4 {[%clk
1:06:14]} 13... Re8 {[%clk 0:44:35]} 14. Rxe8+ {[%clk 0:54:26]} 14... Qxe8
{[%clk 0:44:48]} 15. Bb2 {[%clk 0:54:54]} 15... Na5 {[%clk 0:31:17]} 16. Bc3
{[%clk 0:53:02]} 16... Nc4 {[%clk 0:26:26]} 17. Qd3 {[%clk 0:52:45]} 17... Na3
{[%clk 0:25:04]} 18. Re1 {[%clk 0:51:05]} 18... Qd8 {[%clk 0:24:56]} 19. Bb2
{[%clk 0:50:08]} 19... Qf8 {[%clk 0:11:10]} 20. Ng5 {[%clk 0:49:38]} 20... g6
{[%clk 0:11:34]} 21. Bd5 {[%clk 0:49:38]} 21... Bf5 {[%clk 0:09:57]} 22. Qb3
{[%clk 0:49:23]} 22... Nxc2 {[%clk 0:06:02]} 23. Bxf7+ {[%clk 0:47:47]} 23...
Kg7 {[%clk 0:05:09]} 24. d5+ {[%clk 0:48:15]} 24... Kh6 {[%clk 0:05:33]} 25. Qc4
{[%clk 0:48:42]} 1-0

[Variant "Standard"]
[Site "Europe Echecs"]

[Event "Open Cappelle-la-Grande"]
[Date "2025.02.16"]
[White "Enchev, Ivajlo"]
[Black "Karthik Venkataraman"]
[WhiteElo "2407"]
[BlackElo "2600"]
[Round "3.3.1"]
[Result "1-0"]
[TimeControl "40/5400+30:1800+30"]

1. d4 {[%clk 1:30:11]} 1... Nf6 {[%clk 1:30:50]} 2. c4 {[%clk 1:30:35]} 2... e6
{[%clk 1:31:02]} 3. Nc3 {[%clk 1:30:44]} 3... Bb4 {[%clk 1:31:07]} 4. Qc2 {[%clk
1:31:05]} 4... d5 {[%clk 1:30:10]} 5. cxd5 {[%clk 1:31:28]} 5... exd5 {[%clk
1:30:32]} 6. Bg5 {[%clk 1:31:27]} 6... h6 {[%clk 1:30:46]} 7. Bxf6 {[%clk
1:31:13]} 7... Qxf6 {[%clk 1:31:08]} 8. a3 {[%clk 1:31:30]} 8... Bxc3+ {[%clk
1:31:29]} 9. Qxc3 {[%clk 1:31:52]} 9... O-O {[%clk 1:31:15]} 10. e3 {[%clk
1:31:55]} 10... c6 {[%clk 1:31:28]} 11. Nf3 {[%clk 1:28:29]} 11... Bf5 {[%clk
1:29:28]} 12. Be2 {[%clk 1:27:43]} 12... Nd7 {[%clk 1:29:41]} 13. b4 {[%clk
1:25:30]} 13... Bg4 {[%clk 1:22:07]} 14. O-O {[%clk 1:23:37]} 14... Rfe8 {[%clk
1:19:06]} 15. h3 {[%clk 1:21:47]} 15... Bh5 {[%clk 1:16:56]} 16. Rfc1 {[%clk
1:19:49]} 16... Qe7 {[%clk 1:05:04]} 17. a4 {[%clk 1:16:47]} 17... Nf6 {[%clk
1:02:42]} 18. b5 {[%clk 1:11:17]} 18... Ne4 {[%clk 1:03:10]} 19. Qa3 {[%clk
1:11:19]} 19... Qf6 {[%clk 1:03:39]} 20. bxc6 {[%clk 1:10:54]} 20... bxc6 {[%clk
1:04:03]} 21. Ra2 {[%clk 1:10:20]} 21... g5 {[%clk 0:48:24]} 22. Bd1 {[%clk
1:04:55]} 22... Rac8 {[%clk 0:43:57]} 23. Ne5 {[%clk 0:59:57]} 23... Bxd1 {[%clk
0:43:55]} 24. Rxd1 {[%clk 1:00:19]} 24... c5 {[%clk 0:41:01]} 25. Nd7 {[%clk
0:59:22]} 25... Qe7 {[%clk 0:40:45]} 26. Nxc5 {[%clk 0:59:18]} 26... Nxc5 {[%clk
0:41:10]} 27. dxc5 {[%clk 0:59:43]} 27... Qxc5 {[%clk 0:41:35]} 28. Qd3 {[%clk
0:58:31]} 28... Re5 {[%clk 0:41:16]} 29. Rad2 {[%clk 0:58:16]} 29... Qc4 {[%clk
0:40:48]} 30. Qa3 {[%clk 0:58:23]} 30... a5 {[%clk 0:35:28]} 31. Qd6 {[%clk
0:56:44]} 31... Re6 {[%clk 0:35:57]} 32. Qd7 {[%clk 0:56:11]} 32... Rec6 {[%clk
0:31:46]} 33. Rd4 {[%clk 0:54:52]} 33... Qe2 {[%clk 0:29:55]} 34. Rxd5 {[%clk
0:51:03]} 34... Rc1 {[%clk 0:28:17]} 35. Kh2 {[%clk 0:30:19]} 35... Qxf2 {[%clk
0:24:17]} 36. Rf5 {[%clk 0:30:07]} 36... Qa2 {[%clk 0:24:45]} 37. Rdd5 {[%clk
0:26:55]} 37... R1c7 {[%clk 0:21:58]} 38. Qd6 {[%clk 0:26:56]} 38... Rc6 {[%clk
0:19:20]} 39. Qe7 {[%clk 0:18:24]} 39... Rf8 {[%clk 0:17:57]} 40. Rxf7 {[%clk
0:12:42]} 40... Rxf7 {[%clk 0:18:25]} 41. Qe8+ {[%clk 0:13:06]} 41... Kg7 {[%clk
0:18:50]} 42. Qxc6 {[%clk 0:13:29]} 42... Qb3 {[%clk 0:18:53]} 43. Qe6 {[%clk
0:12:25]} 43... Qb8+ {[%clk 0:09:40]} 44. Rd6 {[%clk 0:12:28]} 44... Kg8 {[%clk
0:09:43]} 45. Qxh6 {[%clk 0:12:02]} 45... g4 {[%clk 0:10:07]} 46. Qg5+ {[%clk
0:11:22]} 46... Rg7 {[%clk 0:10:14]} 47. Qd8+ {[%clk 0:11:10]} 47... Qxd8 {[%clk
0:10:37]} 48. Rxd8+ {[%clk 0:11:34]} 48... Kh7 {[%clk 0:11:05]} 49. h4 {[%clk
0:11:05]} 49... Re7 {[%clk 0:10:57]} 50. Rd5 {[%clk 0:10:27]} 50... Rxe3 {[%clk
0:09:57]} 51. Rxa5 {[%clk 0:10:27]} 51... Kh6 {[%clk 0:09:10]} 52. Rg5 {[%clk
0:10:20]} 52... Re4 {[%clk 0:09:30]} 53. a5 {[%clk 0:10:07]} 53... Ra4 {[%clk
0:09:48]} 54. Kg3 {[%clk 0:09:59]} 54... Ra2 {[%clk 0:10:08]} 55. Rxg4 {[%clk
0:07:47]} 55... Rxa5 {[%clk 0:10:29]} 56. Rf4 {[%clk 0:08:10]} 56... Kh5 {[%clk
0:10:47]} 57. Kh3 {[%clk 0:08:32]} 57... Ra3+ {[%clk 0:11:11]} 58. Rf3 {[%clk
0:08:52]} 58... Ra4 {[%clk 0:11:30]} 59. g4+ {[%clk 0:08:59]} 59... Kg6 {[%clk
0:11:55]} 60. h5+ {[%clk 0:09:10]} 60... Kg5 {[%clk 0:12:11]} 61. Rf5+ {[%clk
0:09:35]} 61... Kh6 {[%clk 0:12:38]} 62. Kh4 {[%clk 0:10:01]} 62... Ra6 {[%clk
0:13:03]} 63. Rb5 {[%clk 0:09:43]} 63... Ra4 {[%clk 0:13:07]} 64. Rb6+ {[%clk
0:10:01]} 64... Kh7 {[%clk 0:13:29]} 65. h6 {[%clk 0:09:53]} 65... Ra1 {[%clk
0:13:23]} 66. Kh5 {[%clk 0:10:10]} 66... Rh1+ {[%clk 0:13:33]} 67. Kg5 {[%clk
0:10:35]} 67... Rc1 {[%clk 0:13:59]} 68. Rb7+ {[%clk 0:10:59]} 68... Kh8 {[%clk
0:14:25]} 69. Kh5 {[%clk 0:11:15]} 69... Rc5+ {[%clk 0:14:44]} 70. g5 {[%clk
0:11:39]} 70... Rc8 {[%clk 0:15:10]} 71. Rf7 {[%clk 0:10:39]} 71... Ra8 {[%clk
0:15:32]} 72. g6 {[%clk 0:10:36]} 72... Ra5+ {[%clk 0:15:54]} 73. Kg4 {[%clk
0:10:59]} 73... Ra4+ {[%clk 0:16:20]} 74. Kg5 {[%clk 0:11:14]} 74... Ra8 {[%clk
0:16:47]} 75. Rf8+ {[%clk 0:09:19]} 75... Rxf8 {[%clk 0:17:10]} 76. g7+ {[%clk
0:09:46]} 76... Kh7 {[%clk 0:17:35]} 77. gxf8=B {[%clk 0:09:48]} 1-0

[Variant "Standard"]
[Site "Europe Echecs"]

[Event "Open Cappelle-la-Grande"]
[Date "2025.02.16"]
[White "Belkaid, Sohan"]
[Black "Laurent-Paoli, Pierre"]
[WhiteElo "2370"]
[BlackElo "2565"]
[Round "3.3.2"]
[Result "1/2-1/2"]
[TimeControl "40/5400+30:1800+30"]

1. e4 {[%clk 1:30:06]} 1... c5 {[%clk 1:23:59]} 2. Nf3 {[%clk 1:30:11]} 2... Nc6
{[%clk 1:24:09]} 3. d4 {[%clk 1:29:45]} 3... cxd4 {[%clk 1:24:34]} 4. Nxd4
{[%clk 1:30:07]} 4... Nf6 {[%clk 1:25:00]} 5. Nc3 {[%clk 1:30:13]} 5... e5
{[%clk 1:25:17]} 6. Ndb5 {[%clk 1:30:11]} 6... d6 {[%clk 1:25:41]} 7. Bg5 {[%clk
1:29:48]} 7... a6 {[%clk 1:24:37]} 8. Na3 {[%clk 1:30:08]} 8... b5 {[%clk
1:24:59]} 9. Nd5 {[%clk 1:29:43]} 9... Be7 {[%clk 1:25:18]} 10. Bxf6 {[%clk
1:29:56]} 10... Bxf6 {[%clk 1:25:42]} 11. c3 {[%clk 1:29:34]} 11... O-O {[%clk
1:20:43]} 12. Nc2 {[%clk 1:27:53]} 12... Bg5 {[%clk 1:14:52]} 13. a4 {[%clk
1:24:34]} 13... bxa4 {[%clk 1:15:17]} 14. Rxa4 {[%clk 1:24:47]} 14... Kh8 {[%clk
1:15:42]} 15. b4 {[%clk 1:11:05]} 15... a5 {[%clk 1:08:33]} 16. Bc4 {[%clk
0:46:22]} 16... Rb8 {[%clk 0:44:41]} 17. O-O {[%clk 0:43:54]} 17... axb4 {[%clk
0:44:00]} 18. cxb4 {[%clk 0:39:54]} 18... f5 {[%clk 0:42:20]} 19. exf5 {[%clk
0:31:38]} 19... Bxf5 {[%clk 0:42:45]} 20. b5 {[%clk 0:31:26]} 20... Na5 {[%clk
0:41:16]} 21. Bd3 {[%clk 0:30:21]} 21... Bd7 {[%clk 0:36:35]} 22. f4 {[%clk
0:08:33]} 22... Rxb5 {[%clk 0:23:28]} 23. Nc3 {[%clk 0:04:49]} 23... Rb8 {[%clk
0:19:28]} 24. fxg5 {[%clk 0:04:27]} 24... Bxa4 {[%clk 0:15:45]} 25. Nxa4 {[%clk
0:00:48]} 25... d5 {[%clk 0:15:17]} 26. Re1 {[%clk 0:00:44]} 26... e4 {[%clk
0:08:37]} 27. Bf1 {[%clk 0:00:44]} 27... Nb3 {[%clk 0:08:46]} 28. Nc3 {[%clk
0:00:35]} 28... Qb6+ {[%clk 0:03:52]} 29. Ne3 {[%clk 0:00:43]} 29... d4 {[%clk
0:03:52]} 30. Nc4 {[%clk 0:00:51]} 30... Qc5 {[%clk 0:01:58]} 31. Nxe4 {[%clk
0:01:09]} 31... Rxf1+ {[%clk 0:02:20]} 32. Rxf1 {[%clk 0:01:28]} 32... Qxc4
{[%clk 0:02:49]} 33. Qf3 {[%clk 0:00:47]} 33... Kg8 {[%clk 0:01:18]} 34. Qf5
{[%clk 0:00:39]} 34... d3 {[%clk 0:01:18]} 35. g6 {[%clk 0:00:47]} 35... hxg6
{[%clk 0:01:00]} 36. Qxg6 {[%clk 0:00:51]} 36... Rf8 {[%clk 0:00:34]} 37. Nf6+
{[%clk 0:00:34]} 37... Rxf6 {[%clk 0:01:02]} 38. Rxf6 {[%clk 0:00:53]} 38...
Qc5+ {[%clk 0:00:36]} 39. Rf2 {[%clk 0:01:15]} 39... Qc1+ {[%clk 0:00:32]} 40.
Rf1 {[%clk 0:01:40]} 40... Qe3+ {[%clk 0:01:00]} 41. Kh1 {[%clk 0:00:45]} 41...
d2 {[%clk 0:22:22]} 42. Qf7+ {[%clk 0:28:00]} 42... Kh7 {[%clk 0:22:48]} 43.
Qf5+ {[%clk 0:20:45]} 43... Kh6 {[%clk 0:19:17]} 44. g4 {[%clk 0:19:00]} 44...
g6 {[%clk 0:19:37]} 45. Qf8+ {[%clk 0:14:50]} 45... Kg5 {[%clk 0:20:02]} 46.
Qf6+ {[%clk 0:14:48]} 46... Kh6 {[%clk 0:16:09]} 47. Qh4+ {[%clk 0:15:04]} 47...
Kg7 {[%clk 0:16:35]} 48. g5 {[%clk 0:15:03]} 48... Qe8 {[%clk 0:15:48]} 49. Qc4
{[%clk 0:07:23]} 49... Qa8+ {[%clk 0:16:06]} 50. Kg1 {[%clk 0:07:40]} 50... Qa7+
{[%clk 0:16:33]} 51. Kg2 {[%clk 0:07:55]} 51... Nd4 {[%clk 0:13:44]} 52. Qc3
{[%clk 0:06:29]} 52... Qb7+ {[%clk 0:08:40]} 53. Kg3 {[%clk 0:03:42]} 53... Qd7
{[%clk 0:09:00]} 54. Rd1 {[%clk 0:02:18]} 54... Qd6+ {[%clk 0:08:17]} 55. Kg2
{[%clk 0:01:43]} 55... Qd5+ {[%clk 0:08:40]} 56. Kf2 {[%clk 0:01:33]} 56... Kg8
{[%clk 0:01:05]} 57. Rxd2 {[%clk 0:00:41]} 57... Qf7+ {[%clk 0:00:43]} 58. Ke3
{[%clk 0:00:47]} 58... Nf5+ {[%clk 0:01:01]} 59. Ke2 {[%clk 0:00:51]} 59... Kh7
{[%clk 0:01:08]} 60. Qh3+ {[%clk 0:01:00]} 60... Kg7 {[%clk 0:01:31]} 61. Qc3+
{[%clk 0:01:23]} 61... Kh7 {[%clk 0:02:00]} 62. Rd3 {[%clk 0:01:06]} 62... Qe7+
{[%clk 0:01:20]} 63. Kf1 {[%clk 0:00:32]} 63... Qxg5 {[%clk 0:00:54]} 64. Rh3+
{[%clk 0:00:34]} 64... Nh4 {[%clk 0:00:40]} 65. Qc7+ {[%clk 0:00:40]} 65... Kh6
{[%clk 0:01:09]} 66. Qg3 {[%clk 0:00:52]} 66... Qf5+ {[%clk 0:01:07]} 67. Ke2
{[%clk 0:00:48]} 67... Qc2+ {[%clk 0:01:25]} 68. Kf1 {[%clk 0:00:48]} 68... Qf5+
{[%clk 0:01:34]} 69. Ke2 {[%clk 0:00:50]} 69... Qc2+ {[%clk 0:02:00]} 70. Kf1
{[%clk 0:01:10]} 70... Qf5+ {[%clk 0:02:27]} 1/2-1/2

[Variant "Standard"]
[Site "Europe Echecs"]